[Event "25e Open International Landes Côtes Sud - Soorts Hossegor"]
[Site "Hossegor, France"]
[Date "2018.05.20"]
[Round "5.3"]
[White "Touzane, Olivier"]
[Black "Ternault, Mathieu"]
[Result "1/2-1/2"]
[TimeControl "90 minutes + 30 secondes par coup"]
[WhiteElo "2314"]
[BlackElo "2339"]

1. Nf3 {[%clk 01:27:38]} {[%emt 00:03:20]} Nc6 {[%clk 01:29:20]} {[%emt
00:01:41]} 2. d4 {[%clk 01:21:00]} {[%emt 00:07:07]} d6 {[%clk 01:28:07]}
{[%emt 00:01:43]} 3. e4 {[%clk 01:14:24]} {[%emt 00:07:06]} Nf6 {[%clk
01:28:21]} {[%emt 00:00:17]} 4. Nc3 {[%clk 01:01:49]} {[%emt 00:13:05]} g6
{[%clk 01:27:31]} {[%emt 00:01:20]} 5. h3 {[%clk 00:55:02]} {[%emt 00:07:16]}
Bg7 {[%clk 01:25:44]} {[%emt 00:02:18]} 6. Be3 {[%clk 00:50:07]} {[%emt
00:05:25]} a6 {[%clk 01:24:38]} {[%emt 00:01:37]} 7. Qd2 {[%clk 00:40:34]}
{[%emt 00:10:02]} O-O {[%clk 01:15:19]} {[%emt 00:09:49]} 8. d5 {[%clk
00:30:19]} {[%emt 00:10:44]} Nb8 {[%clk 01:14:51]} {[%emt 00:00:58]} 9. Bh6
{[%clk 00:27:26]} {[%emt 00:03:24]} e5 {[%clk 01:13:24]} {[%emt 00:01:58]} 10.
dxe6 {[%clk 00:24:53]} {[%emt 00:03:03]} Bxe6 {[%clk 01:13:38]} {[%emt
00:00:16]} 11. Bxg7 {[%clk 00:24:33]} {[%emt 00:00:50]} Kxg7 {[%clk 01:14:02]}
{[%emt 00:00:05]} 12. Bd3 {[%clk 00:22:46]} {[%emt 00:02:17]} Nc6 {[%clk
01:11:04]} {[%emt 00:03:28]} 13. O-O {[%clk 00:20:57]} {[%emt 00:02:19]} Nd7
{[%clk 01:04:02]} {[%emt 00:07:32]} 14. Nh2 {[%clk 00:20:27]} {[%emt 00:01:00]}
Qf6 {[%clk 00:59:56]} {[%emt 00:04:36]} 15. f4 {[%clk 00:20:17]} {[%emt
00:00:40]} Qd4+ {[%clk 00:58:41]} {[%emt 00:01:45]} 16. Kh1 {[%clk 00:19:49]}
{[%emt 00:00:57]} f6 {[%clk 00:54:21]} {[%emt 00:04:51]} 17. Ne2 {[%clk
00:16:37]} {[%emt 00:03:41]} Qb6 {[%clk 00:52:51]} {[%emt 00:02:01]} 18. a3
{[%clk 00:14:41]} {[%emt 00:02:25]} Rae8 {[%clk 00:51:37]} {[%emt 00:01:44]} 19.
b4 {[%clk 00:14:27]} {[%emt 00:00:44]} Nd4 {[%clk 00:47:41]} {[%emt 00:04:26]}
20. Nxd4 {[%clk 00:11:35]} {[%emt 00:03:23]} Qxd4 {[%clk 00:48:06]} {[%emt
00:00:05]} 21. Nf3 {[%clk 00:11:59]} {[%emt 00:00:05]} Qb6 {[%clk 00:46:16]}
{[%emt 00:02:21]} 22. c4 {[%clk 00:11:51]} {[%emt 00:00:39]} a5 {[%clk
00:40:53]} {[%emt 00:05:52]} 23. Rae1 {[%clk 00:11:24]} {[%emt 00:00:57]} Bg8
{[%clk 00:36:15]} {[%emt 00:05:08]} 24. Qc3 {[%clk 00:11:30]} {[%emt 00:00:24]}
axb4 {[%clk 00:35:27]} {[%emt 00:01:19]} 25. axb4 {[%clk 00:11:38]} {[%emt
00:00:22]} Re7 {[%clk 00:34:05]} {[%emt 00:01:52]} 26. Re2 {[%clk 00:11:56]}
{[%emt 00:00:12]} c5 {[%clk 00:31:29]} {[%emt 00:03:06]} 27. b5 {[%clk
00:12:01]} {[%emt 00:00:25]} Qc7 {[%clk 00:31:13]} {[%emt 00:00:45]} 28. g4
{[%clk 00:11:20]} {[%emt 00:01:12]} d5 {[%clk 00:28:47]} {[%emt 00:02:56]} 29.
exd5 {[%clk 00:07:15]} {[%emt 00:04:35]} Rxe2 {[%clk 00:28:10]} {[%emt
00:01:08]} 30. Bxe2 {[%clk 00:07:19]} {[%emt 00:00:26]} Qxf4 {[%clk 00:28:31]}
{[%emt 00:00:09]} 31. Nd2 {[%clk 00:06:17]} {[%emt 00:01:31]} Qe5 {[%clk
00:18:32]} {[%emt 00:10:29]} 32. Qxe5 {[%clk 00:06:09]} {[%emt 00:00:38]} Nxe5
{[%clk 00:17:19]} {[%emt 00:01:43]} 33. Ne4 {[%clk 00:05:55]} {[%emt 00:00:44]}
b6 {[%clk 00:16:03]} {[%emt 00:01:46]} 34. Ra1 {[%clk 00:05:52]} {[%emt
00:00:32]} f5 {[%clk 00:14:37]} {[%emt 00:01:56]} 35. gxf5 {[%clk 00:05:05]}
{[%emt 00:01:17]} Rxf5 {[%clk 00:14:45]} {[%emt 00:00:22]} 36. Ra7+ {[%clk
00:04:54]} {[%emt 00:00:41]} Rf7 {[%clk 00:14:04]} {[%emt 00:01:11]} 37. Rxf7+
{[%clk 00:04:46]} {[%emt 00:00:38]} Nxf7 {[%clk 00:10:43]} {[%emt 00:03:51]} 38.
h4 {[%clk 00:04:27]} {[%emt 00:00:48]} Kf8 {[%clk 00:09:34]} {[%emt 00:01:39]}
39. Nc3 {[%clk 00:04:43]} {[%emt 00:00:14]} Ne5 {[%clk 00:08:08]} {[%emt
00:01:55]} 40. Na4 {[%clk 00:04:34]} {[%emt 00:00:39]} Nd7 {[%clk 00:08:37]}
{[%emt 00:00:02]} 41. Bf1 {[%clk 00:04:31]} {[%emt 00:00:32]} Ke7 {[%clk
00:08:13]} {[%emt 00:00:54]} 42. Bh3 {[%clk 00:04:44]} {[%emt 00:00:17]} Ne5
{[%clk 00:08:20]} {[%emt 00:00:23]} 43. Bf1 {[%clk 00:04:07]} {[%emt 00:01:08]}
Nd7 {[%clk 00:08:49]} {[%emt 00:00:02]} 44. Kh2 {[%clk 00:04:21]} {[%emt
00:00:16]} Kd6 {[%clk 00:07:14]} {[%emt 00:02:05]} 45. Bh3 {[%clk 00:04:13]}
{[%emt 00:00:37]} Ne5 {[%clk 00:07:43]} {[%emt 00:00:02]} 46. Nxb6 {[%clk
00:03:32]} {[%emt 00:01:12]} Kc7 {[%clk 00:07:59]} {[%emt 00:00:14]} 47. Be6
{[%clk 00:01:59]} {[%emt 00:02:02]} Bxe6 {[%clk 00:02:17]} {[%emt 00:06:13]} 48.
dxe6 {[%clk 00:02:08]} {[%emt 00:00:21]} Kxb6 {[%clk 00:02:27]} {[%emt
00:00:20]} 49. e7 {[%clk 00:02:17]} {[%emt 00:00:20]} Ng4 {[%clk 00:02:52]}
{[%emt 00:00:05]} 50. Kg3 {[%clk 00:02:28]} {[%emt 00:00:19]} Nf6 {[%clk
00:03:16]} {[%emt 00:00:07]} 51. Kf4 {[%clk 00:02:37]} {[%emt 00:00:20]} h6
{[%clk 00:01:46]} {[%emt 00:02:01]} 52. Ke5 {[%clk 00:02:45]} {[%emt 00:00:22]}
Ne8 {[%clk 00:02:12]} {[%emt 00:00:03]} 53. Ke6 {[%clk 00:03:00]} {[%emt
00:00:15]} g5 {[%clk 00:01:13]} {[%emt 00:01:30]} 54. hxg5 {[%clk 00:01:24]}
{[%emt 00:02:06]} hxg5 {[%clk 00:01:41]} {[%emt 00:00:01]} 55. Kf5 {[%clk
00:01:40]} {[%emt 00:00:14]} g4 {[%clk 00:00:43]} {[%emt 00:01:29]} 56. Kxg4
{[%clk 00:02:01]} {[%emt 00:00:09]} Kc7 {[%clk 00:00:59]} {[%emt 00:00:14]} 57.
Kf5 {[%clk 00:01:49]} {[%emt 00:00:42]} Kd6 {[%clk 00:01:26]} {[%emt 00:00:04]}
58. b6 {[%clk 00:01:34]} {[%emt 00:00:45]} Kc6 {[%clk 00:01:05]} {[%emt
00:00:51]} 59. Ke6 {[%clk 00:01:07]} {[%emt 00:00:57]} Kxb6 {[%clk 00:01:27]}
{[%emt 00:00:08]} 60. Kd7 {[%clk 00:01:25]} {[%emt 00:00:12]} Ng7 {[%clk
00:01:51]} {[%emt 00:00:05]} 61. Kd6 {[%clk 00:01:31]} {[%emt 00:00:24]} Ne8
{[%clk 00:01:04]} {[%emt 00:01:18]} 62. Kd7 {[%clk 00:01:46]} {[%emt 00:00:14]}
Ng7 {[%clk 00:01:29]} {[%emt 00:00:05]} 63. Kd6 {[%clk 00:02:07]} {[%emt
00:00:09]} Ne8 {[%clk 00:01:08]} {[%emt 00:00:52]} 64. Kd7 {[%clk 00:02:03]}
{[%emt 00:00:33]} Ng7 {[%clk 00:01:21]} {[%emt 00:00:16]} 1/2-1/2

[Event "25e Open International Landes Côtes Sud - Soorts Hossegor"]
[Site "Hossegor, France"]
[Date "2018.05.20"]
[Round "5.2"]
[White "Etchegaray, Patrice"]
[Black "Roselle, Tristan"]
[Result "1/2-1/2"]
[TimeControl "90 minutes + 30 secondes par coup"]
[WhiteElo "2342"]
[BlackElo "2110"]

1. d4 {[%clk 01:30:16]} {[%emt 00:00:43]} d5 {[%clk 01:27:42]} {[%emt
00:03:19]} 2. Bf4 {[%clk 01:29:31]} {[%emt 00:01:14]} Bf5 {[%clk 01:27:18]}
{[%emt 00:00:54]} 3. e3 {[%clk 01:29:24]} {[%emt 00:00:37]} e6 {[%clk
01:27:35]} {[%emt 00:00:13]} 4. Nf3 {[%clk 01:28:04]} {[%emt 00:01:50]} Nf6
{[%clk 01:27:34]} {[%emt 00:00:33]} 5. c4 {[%clk 01:28:03]} {[%emt 00:00:30]}
Bxb1 {[%clk 01:24:01]} {[%emt 00:04:03]} 6. Qxb1 {[%clk 01:27:52]} {[%emt
00:00:40]} Bb4+ {[%clk 01:24:24]} {[%emt 00:00:07]} 7. Kd1 {[%clk 01:28:12]}
{[%emt 00:00:10]} Bd6 {[%clk 01:22:47]} {[%emt 00:02:08]} 8. Bg3 {[%clk
01:24:59]} {[%emt 00:03:43]} O-O {[%clk 01:18:45]} {[%emt 00:04:31]} 9. Bd3
{[%clk 01:23:26]} {[%emt 00:02:02]} dxc4 {[%clk 01:15:18]} {[%emt 00:03:58]} 10.
Bxc4 {[%clk 01:23:07]} {[%emt 00:00:50]} c5 {[%clk 01:15:35]} {[%emt 00:00:13]}
11. Ke2 {[%clk 01:21:30]} {[%emt 00:02:06]} Bxg3 {[%clk 01:13:44]} {[%emt
00:02:22]} 12. hxg3 {[%clk 01:21:36]} {[%emt 00:00:24]} cxd4 {[%clk 01:13:09]}
{[%emt 00:01:05]} 13. Nxd4 {[%clk 01:20:23]} {[%emt 00:01:42]} h6 {[%clk
01:11:51]} {[%emt 00:01:49]} 14. Qc2 {[%clk 01:13:13]} {[%emt 00:07:38]} Nbd7
{[%clk 01:10:50]} {[%emt 00:01:33]} 15. Rad1 {[%clk 01:08:00]} {[%emt
00:05:42]} Qe7 {[%clk 01:08:48]} {[%emt 00:02:32]} 16. Bd3 {[%clk 00:54:31]}
{[%emt 00:13:57]} Ne5 {[%clk 01:06:37]} {[%emt 00:02:43]} 17. Qb3 {[%emt
00:03:09]} Nxd3 {[%clk 01:05:00]} {[%emt 00:02:04]} 18. Rxd3 {[%clk 00:51:43]}
{[%emt 00:00:42]} Rfd8 {[%clk 01:04:35]} {[%emt 00:00:55]} 19. Rhd1 {[%clk
00:51:53]} {[%emt 00:00:19]} Rd5 {[%clk 00:59:29]} {[%emt 00:05:37]} 20. Nf3
{[%clk 00:46:24]} {[%emt 00:05:58]} Rad8 {[%clk 00:58:12]} {[%emt 00:01:47]} 21.
Rxd5 {[%clk 00:45:52]} {[%emt 00:01:02]} Rxd5 {[%clk 00:58:33]} {[%emt
00:00:09]} 22. Rxd5 {[%clk 00:44:22]} {[%emt 00:02:00]} Nxd5 {[%clk 00:58:31]}
{[%emt 00:00:32]} 23. a3 {[%clk 00:41:26]} {[%emt 00:03:26]} Qc7 {[%clk
00:53:08]} {[%emt 00:05:53]} 24. Nd4 {[%clk 00:38:01]} {[%emt 00:03:54]} a6
{[%clk 00:52:36]} {[%emt 00:01:02]} 25. Qc2 {[%emt 00:12:49]} 1/2-1/2

[ePGN "0.1;DGT LiveChess/2.1"]

[Event "25e Open International Landes Côtes Sud - Soorts Hossegor"]
[Site "Hossegor, France"]
[Date "2018.05.21"]
[Round "6.2"]
[White "Ternault, Mathieu"]
[Black "Kirk, Ezra"]
[Result "1/2-1/2"]
[TimeControl "90 minutes + 30 secondes par coup"]
[WhiteElo "2339"]
[BlackElo "2420"]

1. e4 {[%clk 01:20:46]} {[%emt 00:10:14]} c5 {[%clk 01:20:28]} {[%emt
00:10:32]} 2. a3 {[%clk 01:20:50]} {[%emt 00:00:27]} g6 {[%clk 01:14:23]}
{[%emt 00:06:35]} 3. Nc3 {[%clk 01:20:51]} {[%emt 00:00:29]} Bg7 {[%clk
01:14:48]} {[%emt 00:00:04]} 4. Bc4 {[%clk 01:21:16]} {[%emt 00:00:05]} Nc6
{[%clk 01:13:53]} {[%emt 00:01:25]} 5. d3 {[%clk 01:20:40]} {[%emt 00:01:06]}
e6 {[%clk 01:08:59]} {[%emt 00:05:24]} 6. h4 {[%clk 01:14:29]} {[%emt
00:06:42]} h5 {[%clk 01:03:54]} {[%emt 00:05:34]} 7. Nge2 {[%clk 00:49:49]}
{[%emt 00:25:10]} Nge7 {[%clk 01:03:27]} {[%emt 00:00:58]} 8. Bg5 {[%clk
00:50:00]} {[%emt 00:00:19]} a6 {[%clk 01:01:34]} {[%emt 00:02:23]} 9. O-O
{[%clk 00:45:36]} {[%emt 00:04:53]} b5 {[%clk 00:58:23]} {[%emt 00:03:41]} 10.
Ba2 {[%clk 00:44:53]} {[%emt 00:01:14]} Bb7 {[%clk 00:58:11]} {[%emt 00:00:42]}
11. Qd2 {[%clk 00:40:54]} {[%emt 00:04:30]} Rc8 {[%clk 00:45:46]} {[%emt
00:12:53]} 12. Rab1 {[%clk 00:32:10]} {[%emt 00:09:14]} O-O {[%clk 00:37:30]}
{[%emt 00:08:47]} 13. b4 {[%clk 00:26:29]} {[%emt 00:06:11]} d6 {[%clk
00:37:10]} {[%emt 00:00:50]} 14. Nd1 {[%clk 00:25:04]} {[%emt 00:01:55]} Kh7
{[%clk 00:34:16]} {[%emt 00:03:24]} 15. c3 {[%clk 00:22:45]} {[%emt 00:02:50]}
Ne5 {[%clk 00:27:11]} {[%emt 00:07:35]} 16. Ne3 {[%clk 00:20:01]} {[%emt
00:03:14]} f6 {[%clk 00:23:25]} {[%emt 00:04:15]} 17. Bf4 {[%clk 00:19:09]}
{[%emt 00:01:21]} c4 {[%clk 00:23:19]} {[%emt 00:00:37]} 18. dxc4 {[%clk
00:18:33]} {[%emt 00:01:06]} bxc4 {[%clk 00:19:01]} {[%emt 00:04:48]} 19. Rbd1
{[%clk 00:13:27]} {[%emt 00:05:36]} Bxe4 {[%clk 00:13:45]} {[%emt 00:05:47]} 20.
Qxd6 {[%clk 00:11:49]} {[%emt 00:02:08]} Bd3 {[%clk 00:08:03]} {[%emt
00:06:12]} 21. Qxe6 {[%clk 00:08:54]} {[%emt 00:03:24]} Rc6 {[%clk 00:07:42]}
{[%emt 00:00:51]} 22. Qh3 {[%clk 00:09:06]} {[%emt 00:00:19]} Qa8 {[%clk
00:04:09]} {[%emt 00:04:03]} 23. Rfe1 {[%clk 00:08:37]} {[%emt 00:00:59]} Rcc8
{[%clk 00:01:40]} {[%emt 00:02:58]} 24. Nd4 {[%clk 00:07:22]} {[%emt 00:01:45]}
N7c6 {[%clk 00:01:29]} {[%emt 00:00:42]} 25. Ne6 {[%clk 00:06:24]} {[%emt
00:01:27]} Rfe8 {[%clk 00:01:56]} {[%emt 00:00:03]} 26. Nc5 {[%clk 00:06:44]}
{[%emt 00:00:10]} f5 {[%clk 00:01:59]} {[%emt 00:00:28]} 27. Nd5 {[%clk
00:05:03]} {[%emt 00:02:11]} Qa7 {[%clk 00:01:47]} {[%emt 00:00:42]} 28. Bg5
{[%clk 00:04:34]} {[%emt 00:00:59]} Ng4 {[%clk 00:01:47]} {[%emt 00:00:31]} 29.
Bb1 {[%clk 00:01:47]} {[%emt 00:03:18]} Nce5 {[%clk 00:00:59]} {[%emt
00:01:17]} 30. Qg3 {[%clk 00:02:16]} {[%emt 00:00:01]} Rxc5 {[%clk 00:01:00]}
{[%emt 00:00:29]} 31. bxc5 {[%clk 00:02:40]} {[%emt 00:00:06]} Qxc5 {[%clk
00:01:22]} {[%emt 00:00:08]} 32. Nf4 {[%clk 00:02:30]} {[%emt 00:00:40]} Bxb1
{[%clk 00:01:00]} {[%emt 00:00:52]} 33. Rxb1 {[%clk 00:02:47]} {[%emt
00:00:12]} Qxa3 {[%clk 00:01:25]} {[%emt 00:00:05]} 34. Nh3 {[%clk 00:01:33]}
{[%emt 00:01:43]} Qa2 {[%clk 00:01:23]} {[%emt 00:00:33]} 35. Ra1 {[%clk
00:01:03]} {[%emt 00:01:01]} Nd3 {[%clk 00:01:49]} {[%emt 00:00:04]} 36. Red1
{[%clk 00:00:38]} {[%emt 00:00:55]} Qc2 {[%clk 00:02:16]} {[%emt 00:00:03]} 37.
Be3 {[%clk 00:00:48]} {[%emt 00:00:20]} Nxe3 {[%clk 00:00:59]} {[%emt
00:01:47]} 38. fxe3 {[%clk 00:00:37]} {[%emt 00:00:41]} Qe2 {[%clk 00:00:51]}
{[%emt 00:00:38]} 39. Ng5 {[%clk 00:00:37]} {[%emt 00:00:30]} Kh6 {[%clk
00:00:42]} {[%emt 00:00:39]} 40. Nf7 {[%clk 00:01:04]} {[%emt 00:00:02]} Kh7
{[%clk 00:01:08]} {[%emt 00:00:03]} 41. Ng5 {[%clk 00:01:33]} Kh6 {[%clk
00:01:34]} {[%emt 00:00:05]} 42. Nf7 {[%clk 00:00:42]} {[%emt 00:01:22]} Kh7
{[%emt 00:00:35]} 43. Rf1 {[%emt 00:00:33]} Qxe3+ {[%emt 00:00:01]} 44. Qxe3
{[%emt 00:00:03]} Rxe3 1/2-1/2

[Event "25e Open International Landes Côtes Sud - Soorts Hossegor"]
[Site "Hossegor, France"]
[Date "2018.05.21"]
[Round "6.3"]
[White "Martinet, Regis"]
[Black "Etchegaray, Patrice"]
[Result "1/2-1/2"]
[TimeControl "90 minutes + 30 secondes par coup"]
[WhiteElo "2061"]
[BlackElo "2342"]

1. d4 {[%clk 01:27:10]} {[%emt 00:03:48]} g6 {[%clk 01:30:03]} {[%emt
00:00:58]} 2. e4 {[%clk 01:25:49]} {[%emt 00:01:51]} Bg7 {[%clk 01:29:57]}
{[%emt 00:00:36]} 3. Nf3 {[%clk 01:25:29]} {[%emt 00:00:49]} d6 {[%clk
01:30:12]} {[%emt 00:00:16]} 4. h3 {[%clk 01:23:23]} {[%emt 00:02:37]} Nf6
{[%clk 01:25:00]} {[%emt 00:05:42]} 5. Nc3 {[%clk 01:22:17]} {[%emt 00:01:35]}
a6 {[%clk 01:23:26]} {[%emt 00:02:05]} 6. Be3 {[%clk 01:22:07]} {[%emt
00:00:39]} O-O {[%clk 01:23:28]} {[%emt 00:00:28]} 7. Bd3 {[%clk 01:21:32]}
{[%emt 00:01:04]} b5 {[%clk 01:23:38]} {[%emt 00:00:20]} 8. O-O {[%clk
01:18:23]} {[%emt 00:03:39]} Bb7 {[%clk 01:23:36]} {[%emt 00:00:31]} 9. a3
{[%clk 01:18:45]} {[%emt 00:00:08]} Nbd7 {[%clk 01:22:24]} {[%emt 00:01:42]} 10.
Qd2 {[%clk 01:17:47]} {[%emt 00:01:28]} c5 {[%clk 01:18:00]} {[%emt 00:04:55]}
11. d5 {[%clk 01:14:45]} {[%emt 00:03:32]} e5 {[%clk 01:14:51]} {[%emt
00:03:39]} 12. Rfe1 {[%clk 01:10:45]} {[%emt 00:04:30]} Qc7 {[%clk 01:08:57]}
{[%emt 00:06:25]} 13. Bg5 {[%clk 01:06:08]} {[%emt 00:05:07]} Kh8 {[%clk
01:05:05]} {[%emt 00:04:22]} 14. Nh2 {[%clk 00:57:02]} {[%emt 00:09:35]} Ng8
{[%clk 01:04:11]} {[%emt 00:01:24]} 15. f3 {[%clk 00:55:22]} {[%emt 00:02:10]}
Ndf6 {[%clk 01:01:01]} {[%emt 00:03:41]} 16. Bf1 {[%clk 00:55:34]} {[%emt
00:00:18]} Nh5 {[%clk 00:58:44]} {[%emt 00:02:46]} 17. Ne2 {[%clk 00:55:51]}
{[%emt 00:00:12]} f5 {[%clk 00:58:33]} {[%emt 00:00:43]} 18. g4 {[%clk
00:53:53]} {[%emt 00:02:29]} fxg4 {[%clk 00:55:31]} {[%emt 00:03:31]} 19. fxg4
{[%clk 00:53:39]} {[%emt 00:00:44]} Nf4 {[%clk 00:54:10]} {[%emt 00:01:51]} 20.
c3 {[%clk 00:51:32]} {[%emt 00:02:37]} Bh6 {[%clk 00:50:20]} {[%emt 00:04:20]}
21. Bxh6 {[%clk 00:49:36]} {[%emt 00:02:26]} Nxh6 {[%clk 00:50:45]} {[%emt
00:00:05]} 22. Bg2 {[%clk 00:47:53]} {[%emt 00:02:13]} Qe7 {[%clk 00:39:09]}
{[%emt 00:12:06]} 23. Rf1 {[%clk 00:48:02]} {[%emt 00:00:21]} g5 {[%clk
00:39:18]} {[%emt 00:00:23]} 24. Ng3 {[%clk 00:48:00]} {[%emt 00:00:31]} Bc8
{[%clk 00:39:28]} {[%emt 00:00:19]} 25. b4 {[%clk 00:48:04]} {[%emt 00:00:27]}
c4 {[%clk 00:39:25]} {[%emt 00:00:32]} 26. a4 {[%clk 00:47:16]} {[%emt
00:01:19]} Bd7 {[%clk 00:39:12]} {[%emt 00:00:46]} 27. axb5 {[%clk 00:47:00]}
{[%emt 00:00:42]} axb5 {[%clk 00:38:58]} {[%emt 00:00:45]} 28. Qe3 {[%clk
00:43:16]} {[%emt 00:04:12]} Nf7 {[%clk 00:36:02]} {[%emt 00:03:27]} 29. Ra7
{[%clk 00:42:10]} {[%emt 00:01:35]} Rfb8 {[%clk 00:30:03]} {[%emt 00:06:30]} 30.
Rfa1 {[%clk 00:41:19]} {[%emt 00:01:20]} Qd8 {[%clk 00:30:14]} {[%emt
00:00:19]} 31. Bf1 {[%clk 00:39:08]} {[%emt 00:02:40]} Kg8 {[%clk 00:26:34]}
{[%emt 00:04:11]} 32. Nf3 {[%clk 00:35:26]} {[%emt 00:04:11]} h6 {[%clk
00:26:22]} {[%emt 00:00:42]} 33. Kh2 {[%clk 00:35:17]} {[%emt 00:00:38]} Rc8
{[%clk 00:25:17]} {[%emt 00:01:36]} 34. Ne1 {[%clk 00:31:17]} {[%emt 00:04:30]}
Nh8 {[%clk 00:21:03]} {[%emt 00:04:44]} 35. Nh5 {[%clk 00:27:52]} {[%emt
00:03:55]} Nxh5 {[%clk 00:20:08]} {[%emt 00:01:25]} 36. gxh5 {[%clk 00:28:16]}
{[%emt 00:00:06]} Qf8 {[%clk 00:14:16]} {[%emt 00:06:21]} 37. Be2 {[%clk
00:27:23]} {[%emt 00:01:23]} Rxa7 {[%clk 00:11:48]} {[%emt 00:03:00]} 38. Rxa7
{[%clk 00:27:36]} {[%emt 00:00:16]} Rd8 {[%clk 00:11:02]} {[%emt 00:01:16]} 39.
Ng2 {[%clk 00:27:57]} {[%emt 00:00:09]} Qf6 {[%clk 00:10:24]} {[%emt 00:01:08]}
40. Qf3 {[%clk 00:26:24]} {[%emt 00:02:04]} Qxf3 {[%clk 00:05:45]} {[%emt
00:05:09]} 41. Bxf3 {[%emt 00:02:31]} 1/2-1/2

[Event "25e Open International Landes Côtes Sud - Soorts Hossegor"]
[Site "Hossegor, France"]
[Date "2018.05.21"]
[Round "6.1"]
[White "Fantinel, Thibault"]
[Black "Doyen, Remi"]
[Result "0-1"]
[TimeControl "90 minutes + 30 secondes par coup"]
[WhiteElo "2406"]
[BlackElo "2121"]

1. c4 {[%clk 01:21:32]} {[%emt 00:09:27]} c5 {[%clk 01:29:55]} {[%emt
00:01:05]} 2. Nf3 {[%clk 01:21:04]} {[%emt 00:00:57]} Nf6 {[%clk 01:30:19]}
{[%emt 00:00:06]} 3. b3 {[%clk 01:19:25]} {[%emt 00:02:10]} g6 {[%clk
01:26:06]} {[%emt 00:04:42]} 4. Bb2 {[%clk 01:18:07]} {[%emt 00:01:47]} Bg7
{[%clk 01:25:21]} {[%emt 00:01:15]} 5. g3 {[%clk 01:18:34]} {[%emt 00:00:04]}
b6 {[%clk 01:24:27]} {[%emt 00:01:24]} 6. Bg2 {[%clk 01:18:52]} {[%emt
00:00:11]} Bb7 {[%clk 01:24:50]} {[%emt 00:00:07]} 7. O-O {[%clk 01:19:18]}
{[%emt 00:00:05]} O-O {[%clk 01:25:08]} {[%emt 00:00:12]} 8. d4 {[%clk
01:18:51]} {[%emt 00:00:57]} cxd4 {[%clk 01:25:14]} {[%emt 00:00:25]} 9. Qxd4
{[%clk 01:19:18]} {[%emt 00:00:02]} d6 {[%clk 01:13:37]} {[%emt 00:12:06]} 10.
Rd1 {[%clk 01:10:23]} {[%emt 00:09:24]} Nbd7 {[%clk 01:10:15]} {[%emt
00:03:53]} 11. Qf4 {[%clk 01:05:07]} {[%emt 00:05:46]} Qc7 {[%clk 01:06:52]}
{[%emt 00:03:54]} 12. Nc3 {[%clk 00:49:40]} {[%emt 00:15:57]} Rac8 {[%clk
01:04:03]} {[%emt 00:03:19]} 13. Rac1 {[%clk 00:47:04]} {[%emt 00:03:06]} Qb8
{[%clk 00:57:34]} {[%emt 00:06:58]} 14. Bh3 {[%clk 00:42:59]} {[%emt 00:04:34]}
Rfd8 {[%clk 00:44:01]} {[%emt 00:14:03]} 15. Qd2 {[%clk 00:39:19]} {[%emt
00:04:10]} Rc5 {[%clk 00:34:11]} {[%emt 00:10:20]} 16. Ba3 {[%clk 00:33:31]}
{[%emt 00:06:18]} Rh5 {[%clk 00:32:38]} {[%emt 00:02:02]} 17. Bg2 {[%clk
00:33:58]} {[%emt 00:00:04]} Bh6 {[%clk 00:29:03]} {[%emt 00:04:05]} 18. e3
{[%clk 00:26:53]} {[%emt 00:07:35]} Qa8 {[%clk 00:28:04]} {[%emt 00:01:40]} 19.
Ne1 {[%clk 00:18:46]} {[%emt 00:08:27]} Bxg2 {[%clk 00:23:26]} {[%emt
00:05:07]} 20. Nxg2 {[%clk 00:19:13]} {[%emt 00:00:03]} Ne5 {[%clk 00:23:40]}
{[%emt 00:00:17]} 21. Ne1 {[%clk 00:19:22]} {[%emt 00:00:20]} Nfg4 {[%clk
00:22:40]} {[%emt 00:01:30]} 22. Qd5 {[%clk 00:12:41]} {[%emt 00:07:11]} Qc8
{[%clk 00:15:11]} {[%emt 00:07:59]} 23. Qe4 {[%clk 00:03:06]} {[%emt 00:10:06]}
Rxh2 {[%clk 00:12:53]} {[%emt 00:02:47]} 24. Nd5 {[%clk 00:02:57]} {[%emt
00:00:39]} Re8 {[%clk 00:09:46]} {[%emt 00:03:37]} 25. Rd2 {[%clk 00:02:19]}
{[%emt 00:01:08]} e6 {[%clk 00:02:48]} {[%emt 00:07:28]} 26. Nf4 {[%clk
00:02:35]} {[%emt 00:00:14]} f5 {[%clk 00:02:33]} {[%emt 00:00:45]} 27. Qd4
{[%clk 00:01:14]} {[%emt 00:01:50]} Qa8 {[%clk 00:02:20]} {[%emt 00:00:43]} 28.
Nd5 {[%clk 00:00:40]} {[%emt 00:01:04]} exd5 {[%clk 00:02:02]} {[%emt
00:00:47]} 29. cxd5 {[%clk 00:01:08]} {[%emt 00:00:03]} Rxf2 {[%clk 00:02:07]}
{[%emt 00:00:25]} 30. Rc3 {[%clk 00:00:58]} {[%emt 00:00:40]} Rxd2 {[%clk
00:01:51]} {[%emt 00:00:47]} 31. Qxd2 {[%clk 00:01:26]} {[%emt 00:00:01]} Nxe3
{[%clk 00:01:20]} {[%emt 00:01:01]} 0-1

[ePGN "0.1;DGT LiveChess/2.1"]